fUSD/lending_fUSD_20240905
["ID","MTS","AMOUNT","RATE_DAILY","PERIOD"]
[337259401,1725553836434,-500.0,0.00014995,2]
[337259402,1725553836443,-500.0,0.00014995,2]
[337259403,1725553836453,-3623.59,0.00014995,2]
[337259404,1725553836462,-3623.59,0.00014995,2]
[337259405,1725553836471,-664.55,0.00014995,2]
[337259406,1725553836480,-664.55,0.00014995,2]
[337259407,1725553836489,-500.0,0.00014995,2]
[337259408,1725553836499,-500.0,0.00014995,2]
[337259409,1725553836508,-500.0,0.00014995,2]
[337259410,1725553836518,-500.0,0.00014995,2]
[337259411,1725553836527,-500.0,0.00014995,2]
[337259412,1725553836536,-500.0,0.00014995,2]
[337259413,1725553836548,-500.0,0.00014995,2]
[337259414,1725553836558,-500.0,0.00014995,2]
[337259415,1725553836567,-500.0,0.00014995,2]
[337259416,1725553836576,-500.0,0.00014995,2]
[337259417,1725553836585,-500.0,0.00014995,2]
[337259418,1725553836594,-1326.98,0.00014995,2]
[337259419,1725553836603,-1326.98,0.00014995,2]
[337259420,1725553836612,-500.0,0.00014995,2]
[337259421,1725553836621,-500.0,0.00014995,2]
[337259422,1725553836631,-1654.89,0.00014995,2]
[337259423,1725553836640,-1654.89,0.00014995,2]
[337259424,1725553836649,-500.0,0.00014995,2]
[337259425,1725553836659,-500.0,0.00014995,2]
[337259426,1725553836668,-500.0,0.00014995,2]
[337259427,1725553836677,-1235.74,0.00014995,2]
[337259428,1725553836686,-1235.74,0.00014995,2]
[337259429,1725553836696,-500.0,0.00014995,2]
[337259430,1725553836705,-2020.97,0.00014995,2]
[337259431,1725553836715,-2020.97,0.00014995,2]
[337259432,1725553836724,-248.68,0.00014995,2]
[337259433,1725553836746,-500.0,0.00014995,2]
[337259434,1725553836755,-500.0,0.00014995,2]
[337259435,1725553836765,-500.0,0.00014995,2]
[337259436,1725553836774,-500.0,0.00014995,2]
[337259437,1725553836785,-5309.17,0.00014995,2]
[337259438,1725553836794,-5309.17,0.00014995,2]
[337259439,1725553836803,-500.0,0.00014995,2]
[337259440,1725553836812,-500.0,0.00014995,2]
[337259441,1725553836824,-500.0,0.00014995,2]
[337259442,1725553836833,-514.95174108,0.00014995,2]
[337259443,1725553836842,-2774.22,0.00014995,2]
[337259444,1725553836851,-2774.22,0.00014995,2]
[337259445,1725553836860,-500.0,0.00014995,2]
[337259446,1725553836870,-500.0,0.00014995,2]
[337259447,1725553836879,-500.0,0.00014995,2]
[337259448,1725553836888,-500.0,0.00014995,2]
[337259449,1725553836897,-500.0,0.00014995,2]
[337259450,1725553836907,-500.0,0.00014995,2]
[337259451,1725553836915,-500.0,0.00014995,2]
[337259452,1725553836924,-500.0,0.00014995,2]
[337259453,1725553836934,-500.0,0.00014995,2]
[337259454,1725553836943,-500.0,0.00014995,2]
[337259455,1725553836951,-500.0,0.00014995,2]
[337259456,1725553836960,-500.0,0.00014995,2]
[337259457,1725553836969,-500.0,0.00014995,2]
[337259458,1725553836978,-500.0,0.00014995,2]
[337259459,1725553836987,-500.0,0.00014995,2]
[337259460,1725553836996,-500.0,0.00014995,2]
[337259461,1725553837005,-500.0,0.00014995,2]
[337259462,1725553837014,-500.0,0.00014995,2]
[337259463,1725553837023,-500.0,0.00014995,2]
[337259464,1725553837032,-500.0,0.00014995,2]
[337259465,1725553837042,-500.0,0.00014995,2]
[337259466,1725553837051,-500.0,0.00014995,2]
[337259467,1725553837060,-500.0,0.00014995,2]
[337259468,1725553837069,-523.48412328,0.00014995,2]
[337259469,1725553837078,-782.73,0.00014995,2]
[337259470,1725553837087,-782.73,0.00014995,2]
[337259471,1725553837096,-500.0,0.00014995,2]
[337259472,1725553837105,-500.0,0.00014995,2]
[337259473,1725553837115,-500.0,0.00014995,2]
[337259474,1725553837124,-500.0,0.00014995,2]
[337259475,1725553837133,-534.12269136,0.00014995,2]
[337259476,1725553837142,-1027.36,0.00014995,2]
[337259477,1725553837153,-1027.36,0.00014995,2]
[337259478,1725553837164,-500.0,0.00014995,2]
[337259479,1725553837173,-500.0,0.00014995,2]
[337259480,1725553837182,-721.08,0.00014995,2]
[337259481,1725553837192,-500.0,0.00014995,2]
[337259482,1725553837200,-500.0,0.00014995,2]
[337259483,1725553837210,-500.0,0.00014995,2]
[337259484,1725553837219,-411.22,0.00014995,2]
[337259485,1725553837233,-2541.21,0.00014995,2]
[337259486,1725553837242,-500.0,0.00014995,2]
[337259487,1725553837251,-194.9562272,0.00014995,2]
[337259488,1725553837268,-999.45843445,0.00014995,2]
[337259489,1725553837974,-58.62156555,0.00014995,2]
[337259490,1725553837989,-1855.37,0.00014995,2]
[337259491,1725553837999,-6022.62,0.00014995,2]
[337259493,1725553838008,-6022.62,0.00014995,2]
[337259494,1725553838017,-15409.36843445,0.00014995,2]
[337259495,1725553838028,-4635.38156555,0.00014995,2]
[337259496,1725553838037,-500.0,0.00014995,2]
[337259497,1725553838046,-2989.74,0.00014995,2]
[337259498,1725553838055,-500.0,0.00014995,2]
[337259499,1725553838064,-2989.74,0.00014995,2]
[337259500,1725553838074,-500.0,0.00014995,2]
[337259501,1725553838083,-500.0,0.00014995,2]
[337259502,1725553838091,-2433.41,0.00014995,2]
[337259503,1725553838101,-500.0,0.00014995,2]
[337259504,1725553838111,-500.0,0.00014995,2]
[337259505,1725553838120,-570.35967361,0.00014995,2]
[337259506,1725553838131,-500.0,0.00014995,2]
[337259507,1725553838141,-500.0,0.00014995,2]
[337259508,1725553838150,-625.31,0.00014995,2]
[337259509,1725553838162,-500.0,0.00014995,2]
[337259511,1725553838171,-500.0,0.00014995,2]
[337259512,1725553838180,-500.0,0.00014995,2]
[337259513,1725553838191,-500.0,0.00014995,2]
[337259514,1725553838201,-500.0,0.00014995,2]
[337259515,1725553838211,-7698.81,0.00014995,2]
[337259516,1725553838221,-500.0,0.00014995,2]
[337259517,1725553838233,-500.0,0.00014995,2]
[337259518,1725553838241,-500.0,0.00014995,2]
[337259519,1725553838251,-617.38,0.00014995,2]
[337259520,1725553838260,-568.6,0.00014995,2]
[337259521,1725553838269,-617.38,0.00014995,2]
[337259522,1725553838278,-1823.63,0.00014995,2]
[337259523,1725553838287,-1823.63,0.00014995,2]
[337259524,1725553838298,-500.0,0.00014995,2]
[337259525,1725553838308,-500.0,0.00014995,2]
[337259526,1725553838317,-174.34,0.00014995,2]
[337259527,1725553838327,-500.0,0.00014995,2]
[337259528,1725553838338,-31.63185914,0.00014995,2]
[337259542,1725553838917,-393.01182328,0.00014995,2]
[337259545,1725553838932,-294.67631758,0.00014995,2]
[337259547,1725553838941,-719.32,0.00014995,2]
[337259549,1725553838951,-500.0,0.00014995,2]
[337259551,1725553838960,-500.0,0.00014995,2]
[337259553,1725553838970,-716.41,0.00014995,2]
[337259554,1725553838980,-716.41,0.00014995,2]
[337259555,1725553838988,-502.86,0.00014995,2]
[337259556,1725553838997,-502.86,0.00014995,2]
[337259557,1725553839008,-500.0,0.00014995,2]
[337259558,1725553839017,-500.0,0.00014995,2]
[337259559,1725553839026,-3419.25,0.00014995,2]
[337259560,1725553839035,-500.0,0.00014995,2]
[337259561,1725553839044,-1222.83,0.00014995,2]
[337259562,1725553839053,-1222.83,0.00014995,2]
[337259563,1725553839062,-366.95877939,0.00014995,2]
[337259564,1725553839076,-133.04122061,0.00014995,2]
[337259565,1725553839086,-375.78,0.00014995,2]
[337259566,1725553839097,-268.33898373,0.00014995,2]
[337259567,1725553839114,-485.22101627,0.00014995,2]
[337259568,1725553839125,-595.46243498,0.00014995,2]
[337259569,1725553839138,-158.09756502,0.00014995,2]
[337259570,1725553839147,-665.69188773,0.00014995,2]
[337259571,1725553839164,-92.54811227,0.00014995,2]
[337259572,1725553839176,-758.24,0.00014995,2]
[337259573,1725553839186,-412.30375088,0.00014995,2]
[337259574,1725553839220,-87.69624912,0.00014995,2]
[337259575,1725553839231,-231.8291259,0.00014995,2]
[337259576,1725553839243,-268.1708741,0.00014995,2]
[337259577,1725553839252,-500.0,0.00014995,2]
[337259578,1725553839261,-500.0,0.00014995,2]
[337259579,1725553839270,-1242.9,0.00014995,2]
[337259580,1725553839280,-580.5291259,0.00014995,2]
[337259582,1725553840153,-662.3708741,0.00014995,2]
[337259583,1725553840167,-500.0,0.00014995,2]
[337259584,1725553840176,-500.0,0.00014995,2]
[337259585,1725553840185,-894.79,0.00014995,2]
[337259586,1725553840195,-500.0,0.00014995,2]
[337259587,1725553840206,-894.79,0.00014995,2]
[337259588,1725553840215,-500.0,0.00014995,2]
[337259589,1725553840224,-500.0,0.00014995,2]
[337259590,1725553840237,-675.99,0.00014995,2]
[337259591,1725553840247,-675.99,0.00014995,2]
[337259592,1725553840256,-809.14,0.00014995,2]
[337259593,1725553840266,-809.14,0.00014995,2]
[337259594,1725553840275,-500.0,0.00014995,2]
[337259595,1725553840285,-996.15,0.00014995,2]
[337259596,1725553840294,-501.41,0.00014995,2]
[337259597,1725553840303,-585.11,0.00014995,2]
[337259598,1725553840313,-500.0,0.00014995,2]
[337259599,1725553840322,-500.0,0.00014995,2]
[337259600,1725553840331,-1302.97,0.00014995,2]
[337259601,1725553840340,-664.04607685,0.00014995,2]
[337259602,1725553840359,-638.92392315,0.00014995,2]
[337259603,1725553840369,-1012.74,0.00014995,2]
[337259604,1725553840378,-500.0,0.00014995,2]
[337259605,1725553840388,-500.0,0.00014995,2]
[337259606,1725553840397,-768.69,0.00014995,2]
[337259607,1725553840407,-500.0,0.00014995,2]
[337259608,1725553840415,-762.3,0.00014995,2]
[337259609,1725553840425,-762.3,0.00014995,2]
[337259610,1725553840434,-3028.98,0.00014995,2]
[337259611,1725553840443,-3028.98,0.00014995,2]
[337259612,1725553840453,-2196.92,0.00014995,2]
[337259613,1725553840463,-1212.57,0.00014995,2]
[337259614,1725553840472,-1212.57,0.00014995,2]
[337259615,1725553840482,-570.54,0.00014995,2]
[337259616,1725553840492,-616.46,0.00014995,2]
[337259617,1725553840501,-616.46,0.00014995,2]
[337259618,1725553840510,-555.8,0.00014995,2]
[337259619,1725553840519,-555.8,0.00014995,2]
[337259620,1725553840529,-3170.25902114,0.00014995,2]
[337259622,1725553840552,-37.74097886,0.00014995,2]
[337259624,1725553840561,-605.09902114,0.00014995,2]
[337259626,1725553840572,-1341.45000002,0.00014995,2]
[337259628,1725553840583,-262.894995,0.00014995,2]
[337259630,1725553840594,-1800.3862206,0.00014995,2]
[337259632,1725553840605,-1924.42976324,0.00014995,2]
[337259634,1725553840615,-4188.12255658,0.00014995,2]
[337259637,1725553840629,-1746.13744342,0.00014995,2]
[337259639,1725553840639,-3208.0,0.00014995,2]
[337259641,1725553840649,-2326.79,0.00014995,2]
[337259643,1725553840658,-2326.79,0.00014995,2]
[337259645,1725553840667,-500.0,0.00014995,2]
[337259647,1725553840676,-946.39,0.00014995,2]
[337259649,1725553840685,-946.39,0.00014995,2]
[337259651,1725553840695,-500.0,0.00014995,2]
[337259653,1725553840704,-500.0,0.00014995,2]
[337259654,1725553840714,-500.0,0.00014995,2]
[337259656,1725553840723,-1555.28,0.00014995,2]
[337259658,1725553840733,-1555.28,0.00014995,2]
[337259660,1725553840742,-500.0,0.00014995,2]
[337259662,1725553840752,-500.0,0.00014995,2]
[337259664,1725553840762,-1363.45,0.00014995,2]
[337259666,1725553840771,-500.0,0.00014995,2]
[337259668,1725553840780,-1363.45,0.00014995,2]
[337259670,1725553840789,-3105.09,0.00014995,2]
[337259672,1725553840798,-3105.09,0.00014995,2]
[337259674,1725553840807,-714.49,0.00014995,2]
[337259676,1725553840816,-500.0,0.00014995,2]
[337259678,1725553840825,-661.36,0.00014995,2]
[337259679,1725553840834,-661.36,0.00014995,2]
[337259680,1725553840843,-11695.67,0.00014995,2]
[337259681,1725553840853,-11695.67,0.00014995,2]
[337259682,1725553840863,-500.0,0.00014995,2]
[337259683,1725553840872,-500.0,0.00014995,2]
[337259684,1725553840881,-500.0,0.00014995,2]
[337259685,1725553840890,-2087.83,0.00014995,2]
[337259686,1725553840899,-2087.83,0.00014995,2]
[337259687,1725553840908,-500.0,0.00014995,2]
[337259688,1725553840917,-500.0,0.00014995,2]
[337259689,1725553840926,-500.0,0.00014995,2]
[337259690,1725553840935,-5887.95,0.00014995,2]
[337259691,1725553840944,-990.84,0.00014995,2]
[337259692,1725553840953,-5887.95,0.00014995,2]
[337259693,1725553840963,-990.84,0.00014995,2]
[337259694,1725553840973,-500.0,0.00014995,2]
[337259695,1725553840983,-500.0,0.00014995,2]
[337259696,1725553840992,-3101.94,0.00014995,2]
[337259697,1725553841002,-3101.94,0.00014995,2]
[337259698,1725553841011,-500.0,0.00014995,2]
[337259699,1725553841020,-500.0,0.00014995,2]
[337259700,1725553841029,-2813.01,0.00014995,2]
[337259701,1725553841039,-2813.01,0.00014995,2]
[337259702,1725553841048,-2719.95,0.00014995,2]
[337259703,1725553841058,-2719.95,0.00014995,2]
[337259704,1725553841066,-163.46970651,0.00014995,2]
[337259705,1725553841076,-389.25846798,0.00014995,2]
[337259706,1725553841084,-3508.06,0.00014995,2]
[337259707,1725553841093,-13510.44,0.00014995,2]
[337259708,1725553841103,-13510.44,0.00014995,2]
[337259709,1725553841112,-500.0,0.00014995,2]
[337259710,1725553841121,-2659.26,0.00014995,2]
[337259711,1725553841130,-567.0,0.00014996,2]
[337259712,1725553841139,-500.0,0.00014996,2]
[337259713,1725553841150,-565.39,0.00014996,2]
[337259714,1725553841161,-2481.14,0.00014996,2]
[337259715,1725553841169,-500.0,0.00014996,2]
[337259716,1725553841178,-2083.49,0.00014996,2]
[337259717,1725553841187,-1582.58,0.00014996,2]
[337259718,1725553841197,-500.0,0.00014996,2]
[337259719,1725553841206,-500.0,0.00014996,2]
[337259720,1725553841215,-500.0,0.00014996,2]
[337259721,1725553841225,-500.0,0.00014996,2]
[337259722,1725553841236,-500.0,0.00014996,2]
[337259723,1725553841244,-1739.6,0.00014996,2]
[337259724,1725553841253,-1742.98,0.00014996,2]
[337259725,1725553841262,-500.0,0.00014996,2]
[337259726,1725553841271,-566.01,0.00014996,2]
[337259727,1725553841279,-2325.28,0.00014996,2]
[337259728,1725553841288,-1090.74,0.00014996,2]
[337259729,1725553841297,-151.305163,0.00014996,2]
[337259730,1725553841306,-151.305163,0.00014996,2]
[337259731,1725553841315,-500.0,0.00014996,2]
[337259732,1725553841324,-500.0,0.00014996,2]
[337259733,1725553841333,-500.0,0.00014996,2]
[337259734,1725553841343,-500.0,0.00014996,2]
[337259735,1725553841352,-500.0,0.00014996,2]
[337259736,1725553841362,-500.0,0.00014996,2]
[337259737,1725553841371,-500.0,0.00014996,2]
[337259738,1725553841380,-500.0,0.00014996,2]
[337259739,1725553841389,-500.0,0.00014996,2]
[337259740,1725553841398,-500.0,0.00014996,2]
[337259741,1725553841407,-500.0,0.00014996,2]
[337259742,1725553841416,-500.0,0.00014996,2]
[337259743,1725553841426,-500.0,0.00014996,2]
[337259744,1725553841435,-814.38,0.00014996,2]
[337259746,1725553841445,-500.0,0.00014996,2]
[337259747,1725553841456,-500.0,0.00014996,2]
[337259748,1725553841465,-500.0,0.00014996,2]
[337259749,1725553841474,-500.0,0.00014996,2]
[337259750,1725553841484,-500.0,0.00014996,2]
[337259751,1725553841494,-500.0,0.00014996,2]
[337259752,1725553841503,-651.92,0.00014996,2]
[337259753,1725553841512,-651.92,0.00014996,2]
[337259754,1725553841521,-651.92,0.00014996,2]
[337259755,1725553841530,-651.92,0.00014996,2]
[337259756,1725553841540,-500.0,0.00014996,2]
[337259757,1725553841549,-651.92,0.00014996,2]
[337259758,1725553841559,-651.92,0.00014996,2]
[337259759,1725553841568,-651.92,0.00014996,2]
[337259760,1725553841577,-651.92,0.00014996,2]
[337259761,1725553841586,-651.92,0.00014996,2]
[337259762,1725553841595,-651.92,0.00014996,2]
[337259763,1725553841604,-651.92,0.00014996,2]
[337259764,1725553841614,-651.92,0.00014996,2]
[337259765,1725553841623,-651.92,0.00014996,2]
[337259766,1725553841632,-651.92,0.00014996,2]
[337259767,1725553841641,-652.04604197,0.00014996,2]
[337259768,1725553841651,-727.97,0.00014996,2]
[337259769,1725553841660,-500.0,0.00014996,2]
[337259770,1725553841669,-727.97,0.00014996,2]
[337259771,1725553841679,-727.97,0.00014996,2]
[337259772,1725553841688,-727.97,0.00014996,2]
[337259773,1725553841697,-727.97,0.00014996,2]
[337259774,1725553841707,-727.97,0.00014996,2]
[337259775,1725553841716,-727.97,0.00014996,2]
[337259776,1725553841726,-727.97,0.00014996,2]
[337259777,1725553841736,-727.97,0.00014996,2]
[337259778,1725553841746,-727.97,0.00014996,2]
[337259779,1725553841755,-727.97,0.00014996,2]
[337259780,1725553841765,-500.0,0.00014996,2]
[337259781,1725553841775,-727.97,0.00014996,2]
[337259782,1725553841785,-727.97,0.00014996,2]
[337259783,1725553841794,-727.97,0.00014996,2]
[337259784,1725553841804,-728.03649239,0.00014996,2]
[337259785,1725553841814,-2970.51,0.00014996,2]
[337259786,1725553841823,-2127.22,0.00014996,2]
[337259787,1725553841832,-500.4,0.00014996,2]
[337259788,1725553841842,-605.01,0.00014996,2]
[337259789,1725553841851,-605.01,0.00014996,2]
[337259790,1725553841861,-605.01,0.00014996,2]
[337259791,1725553841871,-605.01,0.00014996,2]
[337259792,1725553841880,-605.01,0.00014996,2]
[337259793,1725553841890,-605.01,0.00014996,2]
[337259794,1725553841900,-605.01,0.00014996,2]
[337259795,1725553841910,-500.0,0.00014996,2]
[337259796,1725553841919,-605.01,0.00014996,2]
[337259797,1725553841929,-605.01,0.00014996,2]
[337259798,1725553841939,-605.01,0.00014996,2]
[337259799,1725553841949,-605.01,0.00014996,2]
[337259800,1725553841958,-605.01,0.00014996,2]
[337259801,1725553841968,-605.01,0.00014996,2]
[337259802,1725553841978,-605.01,0.00014996,2]
[337259803,1725553841988,-605.11994777,0.00014996,2]
[337259804,1725553841998,-672.18,0.00014996,2]
[337259805,1725553842007,-542.71,0.00014996,2]
[337259806,1725553842016,-542.71,0.00014996,2]
[337259807,1725553842025,-542.71,0.00014996,2]
[337259808,1725553842034,-542.71,0.00014996,2]
[337259809,1725553842043,-542.71,0.00014996,2]
[337259810,1725553842053,-542.71,0.00014996,2]
[337259811,1725553842062,-542.71,0.00014996,2]
[337259812,1725553842071,-542.71,0.00014996,2]
[337259813,1725553842080,-542.71,0.00014996,2]
[337259814,1725553842091,-542.71,0.00014996,2]
[337259815,1725553842100,-542.71,0.00014996,2]
[337259816,1725553842110,-542.71,0.00014996,2]
[337259817,1725553842121,-514.26,0.00014996,2]
[337259818,1725553842132,-542.71,0.00014996,2]
[337259819,1725553842141,-542.71,0.00014996,2]
[337259820,1725553842150,-542.88099803,0.00014996,2]
[337259821,1725553842163,-963.14,0.00014996,2]
[337259822,1725553842172,-524.89,0.00014996,2]
[337259823,1725553842181,-524.89,0.00014996,2]
[337259824,1725553842192,-524.89,0.00014996,2]
[337259825,1725553842202,-524.89,0.00014996,2]
[337259826,1725553842211,-524.89,0.00014996,2]
[337259827,1725553842221,-524.89,0.00014996,2]
[337259828,1725553842232,-524.89,0.00014996,2]
[337259829,1725553842242,-524.89,0.00014996,2]
[337259830,1725553842252,-524.89,0.00014996,2]
[337259831,1725553842261,-524.89,0.00014996,2]
[337259832,1725553842271,-524.89,0.00014996,2]
[337259833,1725553842280,-524.89,0.00014996,2]
[337259834,1725553842290,-524.89,0.00014996,2]
[337259835,1725553842299,-524.89,0.00014996,2]
[337259836,1725553842308,-525.09790463,0.00014996,2]
[337259837,1725553842318,-500.0,0.00014996,2]
[337259838,1725553842328,-2841.65,0.00014996,2]
[337259839,1725553842338,-500.0,0.00014996,2]
[337259840,1725553842347,-318.93,0.00014996,2]
[337259841,1725553842356,-500.0,0.00014996,2]
[337259842,1725553842366,-1697.44,0.00014996,2]
[337259843,1725553842375,-500.0,0.00014996,2]
[337259844,1725553842385,-500.0,0.00014996,2]
[337259845,1725553842394,-500.0,0.00014996,2]
[337259846,1725553842403,-522.82,0.00014996,2]
[337259847,1725553842413,-522.82,0.00014996,2]
[337259848,1725553842422,-522.82,0.00014996,2]
[337259849,1725553842431,-522.82,0.00014996,2]
[337259850,1725553842440,-522.82,0.00014996,2]
[337259851,1725553842450,-522.82,0.00014996,2]
[337259852,1725553842459,-522.82,0.00014996,2]
[337259853,1725553842468,-522.82,0.00014996,2]
[337259854,1725553842477,-522.82,0.00014996,2]
[337259855,1725553842486,-522.82,0.00014996,2]
[337259856,1725553842495,-522.82,0.00014996,2]
[337259857,1725553842505,-522.82,0.00014996,2]
[337259858,1725553842514,-522.82,0.00014996,2]
[337259859,1725553842523,-522.82,0.00014996,2]
[337259860,1725553842532,-522.91171734,0.00014996,2]
[337259861,1725553842541,-500.0,0.00014996,2]
[337259862,1725553842551,-500.0,0.00014996,2]
[337259863,1725553842560,-500.0,0.00014996,2]
[337259864,1725553842570,-608.42,0.00014996,2]
[337259865,1725553842579,-1710.59,0.00014996,2]
[337259866,1725553842743,-500.0,0.00014996,2]
[337259867,1725553842754,-500.0,0.00014996,2]
[337259868,1725553842763,-547.49640075,0.00014996,2]
[337259869,1725553842773,-559.36,0.00014996,2]
[337259870,1725553842783,-500.0,0.00014996,2]
[337259871,1725553842792,-616.90654009,0.00014996,2]
[337259872,1725553842802,-500.0,0.00014996,2]
[337259873,1725553842812,-1176.7078,0.00014996,2]
[337259874,1725553842822,-1176.7078,0.00014996,2]
[337259875,1725553842831,-1176.7078,0.00014996,2]
[337259876,1725553842841,-1176.7078,0.00014996,2]
[337259877,1725553842850,-500.0,0.00014996,2]
[337259878,1725553842859,-500.0,0.00014996,2]
[337259879,1725553842869,-542.1,0.00014996,2]
[337259880,1725553842879,-500.0,0.00014996,2]
[337259881,1725553842888,-154.362379,0.00014996,2]
[337259882,1725553842898,-518.46,0.00014996,2]
[337259883,1725553842908,-2484.57,0.00014996,2]
[337259884,1725553842918,-500.0,0.00014996,2]
[337259885,1725553842927,-500.0,0.00014996,2]
[337259887,1725553842937,-500.0,0.00014996,2]
[337259888,1725553842946,-3623.59,0.00014996,2]
[337259889,1725553842956,-664.55,0.00014996,2]
[337259890,1725553842965,-500.0,0.00014996,2]
[337259891,1725553842975,-500.0,0.00014996,2]
[337259892,1725553842985,-500.0,0.00014996,2]
[337259893,1725553842995,-500.0,0.00014996,2]
[337259894,1725553843005,-500.0,0.00014996,2]
[337259895,1725553843014,-500.0,0.00014996,2]
[337259896,1725553843024,-500.0,0.00014996,2]
[337259897,1725553843034,-1326.98,0.00014996,2]
[337259898,1725553843043,-500.0,0.00014996,2]
[337259899,1725553843052,-1654.89,0.00014996,2]
[337259900,1725553843062,-500.0,0.00014996,2]
[337259901,1725553843071,-500.0,0.00014996,2]
[337259903,1725553843080,-1235.74,0.00014996,2]
[337259905,1725553843089,-500.0,0.00014996,2]
[337259907,1725553843099,-2020.97,0.00014996,2]
[337259909,1725553843109,-500.0,0.00014996,2]
[337259911,1725553843119,-500.0,0.00014996,2]
[337259913,1725553843129,-5309.17,0.00014996,2]
[337259914,1725553843138,-500.0,0.00014996,2]
[337259915,1725553843148,-2774.22,0.00014996,2]
[337259916,1725553843160,-373.0403943,0.00014996,2]
[337259917,1725553843169,-500.0,0.00014996,2]
[337259918,1725553843178,-500.0,0.00014996,2]
[337259919,1725553843188,-500.0,0.00014996,2]
[337259920,1725553843198,-500.0,0.00014996,2]
[337259921,1725553843207,-507.48548973,0.00014996,2]
[337259922,1725553843217,-500.0,0.00014996,2]
[337259923,1725553843228,-500.0,0.00014996,2]
[337259924,1725553843239,-500.0,0.00014996,2]
[337259925,1725553843248,-500.0,0.00014996,2]
[337259926,1725553843258,-217.72450151,0.00014996,2]
[337259927,1725553843268,-500.0,0.00014996,2]
[337259928,1725553843277,-500.0,0.00014996,2]
[337259929,1725553843287,-782.73,0.00014996,2]
[337259930,1725553843296,-500.0,0.00014996,2]
[337259931,1725553843306,-500.0,0.00014996,2]
[337259932,1725553843315,-500.0,0.00014996,2]
[337259933,1725553843324,-500.0,0.00014996,2]
[337259934,1725553843334,-1027.36,0.00014996,2]
[337259935,1725553843343,-721.08,0.00014996,2]
[337259936,1725553843353,-512.17914574,0.00014996,2]
[337259937,1725553843362,-500.0,0.00014996,2]
[337259938,1725553843372,-500.0,0.00014996,2]
[337259939,1725553843380,-1058.08,0.00014996,2]
[337259940,1725553843390,-1855.37,0.00014996,2]
[337259941,1725553843400,-500.0,0.00014996,2]
[337259942,1725553843409,-516.72957282,0.00014996,2]
[337259943,1725553843419,-440.32839547,0.00014996,2]
[337259944,1725553843429,-2433.41,0.00014996,2]
[337259945,1725553843438,-500.0,0.00014996,2]
[337259946,1725553843447,-625.31,0.00014996,2]
[337259947,1725553843457,-500.0,0.00014996,2]
[337259948,1725553843466,-500.0,0.00014996,2]
[337259949,1725553843475,-500.0,0.00014996,2]
[337259950,1725553843487,-7698.81,0.00014996,2]
[337259951,1725553843496,-500.0,0.00014996,2]
[337259952,1725553843505,-500.0,0.00014996,2]
[337259953,1725553843515,-568.6,0.00014996,2]
[337259954,1725553843524,-617.38,0.00014996,2]
[337259955,1725553843533,-500.0,0.00014996,2]
[337259956,1725553843544,-500.0,0.00014996,2]
[337259957,1725553843553,-719.32,0.00014996,2]
[337259958,1725553843563,-502.86,0.00014996,2]
[337259959,1725553843572,-500.0,0.00014996,2]